bitfinex/quotes_SOLUSD_20241024
["timestamp","ask_amount","ask_price","bid_price","bid_amount"]
[1729762238022,0.25098,171.74,171.71,17.07990554]
[1729762238211,21.7466,171.76,171.71,17.07990554]
[1729762238434,17.07990554,171.73,171.68,17.07990554]
[1729762238624,17.07990554,171.74,171.69,17.07990554]
[1729762238821,17.07990554,171.75,171.69,17.07990554]
[1729762239030,38.82650554,171.76,171.71,17.07990554]
[1729762239510,17.33088554,171.75,171.7,17.07990554]
[1729762239719,17.33088554,171.75,171.69,17.07990554]
[1729762241147,0.25098,171.75,171.71,17.07990554]
[1729762241340,0.12549,171.75,171.71,17.07990554]
[1729762242446,0.25098,171.76,171.71,17.07990554]
[1729762243023,0.25098,171.76,171.66,6.4498]
[1729762243024,0.12549,171.77,171.73,17.07990554]
[1729762243342,33.26830554,171.8,171.74,17.07990554]
[1729762243642,0.12549,171.79,171.75,17.07990554]
[1729762243831,39.08910554,171.8,171.74,17.07990554]
[1729762244028,22.0092,171.8,171.75,17.07990554]
[1729762244339,5.8208,171.8,171.75,17.07990554]
[1729762245043,17.07990554,171.82,171.77,17.07990554]
[1729762245342,22.90000554,171.82,171.76,17.07990554]
[1729762245746,17.07990554,171.82,171.76,17.07990554]
[1729762245931,17.07990554,171.81,171.76,17.07990554]
[1729762246319,5.8197,171.83,171.76,17.07990554]
[1729762246525,17.33088554,171.82,171.76,17.07990554]
[1729762246822,17.07990554,171.81,171.76,17.07990554]
[1729762247021,17.07990554,171.81,171.75,17.07990554]
[1729762247441,17.07990554,171.81,171.74,6.1405]
[1729762247630,17.07990554,171.8,171.74,23.22040554]
[1729762248441,17.07990554,171.81,171.75,17.07990554]
[1729762249120,17.07990554,171.81,171.76,17.07990554]
[1729762249738,0.25098,171.83,171.76,17.07990554]
[1729762249934,17.33088554,171.83,171.77,17.07990554]
[1729762253837,17.07990554,171.82,171.75,15.576]
[1729762254021,17.07990554,171.82,171.76,17.07990554]
[1729762254838,17.07990554,171.82,171.75,15.576]
[1729762255350,0.25098,171.84,171.78,17.07990554]
[1729762255529,0.12549,171.82,171.78,17.07990554]
[1729762256453,0.12549,171.82,171.77,17.07990554]
[1729762258421,0.12549,171.82,171.75,15.576]
[1729762258619,0.12549,171.82,171.78,17.07990554]
[1729762258934,0.12549,171.83,171.78,17.07990554]
[1729762259644,16.0738,171.88,171.8,8.53995277]
[1729762259834,17.07990554,171.86,171.81,17.07990554]
[1729762260543,21.8919,171.88,171.81,17.07990554]
[1729762260749,17.07990554,171.87,171.82,17.07990554]
[1729762261250,22.89800554,171.88,171.82,17.07990554]
[1729762261427,22.89800554,171.88,171.83,17.07990554]
[1729762261627,0.25098,171.87,171.83,17.07990554]
[1729762261849,0.25098,171.87,171.82,17.07990554]
[1729762262827,0.12549,171.87,171.82,17.07990554]
[1729762263052,17.20539554,171.87,171.81,17.07990554]
[1729762264250,17.20539554,171.87,171.75,15.576]
[1729762264251,8.53995277,171.85,171.75,15.576]
[1729762264485,17.07990554,171.79,171.74,6.1405]
[1729762264752,0.12549,171.8,171.71,16.2714]
[1729762264753,17.07990554,171.76,171.71,16.2714]
[1729762264937,17.07990554,171.76,171.64,1.21171115]
[1729762264938,17.07990554,171.74,171.68,17.07990554]
[1729762265540,17.07990554,171.75,171.69,17.07990554]
[1729762266550,17.07990554,171.76,171.7,17.07990554]
[1729762267247,17.07990554,171.75,171.7,17.07990554]
[1729762268258,8.53995277,171.72,171.66,6.4063]
[1729762268450,17.07990554,171.7,171.67,0.08]
[1729762269135,17.07990554,171.71,171.67,0.08]
[1729762269639,17.07990554,171.7,171.67,0.08]
[1729762269833,16.57990554,171.7,171.67,0.08]
[1729762270033,17.07990554,171.71,171.67,0.08]
[1729762270243,17.07990554,171.7,171.67,0.08]
[1729762270433,17.07990554,171.71,171.67,0.08]
[1729762271045,17.07990554,171.71,171.65,17.07990554]
[1729762271634,17.07990554,171.7,171.64,17.07990554]
[1729762271834,17.07990554,171.69,171.65,0.08]
[1729762272765,17.07990554,171.7,171.65,0.08]
[1729762273360,8.53995277,171.75,171.69,17.07990554]
[1729762273562,17.07990554,171.77,171.71,17.07990554]
[1729762273752,17.07990554,171.77,171.72,17.07990554]
[1729762273952,22.2857,171.79,171.73,17.07990554]
[1729762273953,39.36560554,171.79,171.73,17.07990554]
[1729762274249,17.07990554,171.77,171.71,17.07990554]
[1729762274442,17.07990554,171.76,171.65,0.08]
[1729762274642,17.07990554,171.76,171.7,17.07990554]
[1729762275046,23.902374,171.78,171.7,17.07990554]
[1729762275250,24.027864,171.78,171.72,17.07990554]
[1729762275449,41.10776954,171.78,171.73,17.07990554]
[1729762275657,41.10776954,171.78,171.72,17.07990554]
[1729762275862,17.07990554,171.77,171.72,17.07990554]
[1729762276041,0.12549,171.76,171.72,17.07990554]
[1729762276244,0.12549,171.76,171.71,17.07990554]
[1729762276442,17.07990554,171.74,171.65,0.08]
[1729762276761,17.07990554,171.74,171.68,17.07990554]
[1729762277067,0.12549,171.68,171.65,0.08]
[1729762277238,17.07990554,171.66,171.65,0.08]
[1729762277439,17.07990554,171.67,171.61,18.90990554]
[1729762278259,26.68903912,171.65,171.61,1.83]
[1729762278459,26.68903912,171.64,171.61,1.83]
[1729762279663,26.68903912,171.64,171.58,48.33123912]
[1729762280174,26.68903912,171.62,171.54,22.11422175]
[1729762280340,26.68903912,171.62,171.56,26.68903912]
[1729762280545,0.12549,171.63,171.59,26.68903912]
[1729762280858,0.12549,171.65,171.6,26.68903912]
[1729762281060,5.95129,171.65,171.6,26.68903912]
[1729762281251,26.81452912,171.65,171.59,26.68903912]
[1729762282756,26.68903912,171.64,171.58,26.68903912]
[1729762283848,26.68903912,171.63,171.57,26.68903912]
[1729762284064,26.68903912,171.62,171.56,26.68903912]
[1729762284269,26.68903912,171.61,171.55,26.68903912]
[1729762285376,26.68903912,171.59,171.54,7.08972175]
[1729762285675,26.68903912,171.59,171.53,26.68903912]
[1729762286453,13.34451956,171.59,171.53,26.68903912]
[1729762286849,0.12549,171.6,171.55,26.68903912]
[1729762287052,26.81452912,171.6,171.5,1.01238618]
[1729762287248,26.68903912,171.59,171.53,26.68903912]
[1729762287475,26.81452912,171.6,171.55,26.68903912]
[1729762287745,0.25098,171.6,171.55,26.68903912]
[1729762287963,0.12549,171.6,171.57,26.68903912]
[1729762288166,0.12549,171.62,171.58,26.68903912]
[1729762288370,0.25098,171.63,171.58,26.68903912]
[1729762289348,0.25098,171.58,171.5,1.01238618]
[1729762289565,0.25098,171.58,171.48,26.68903912]
[1729762289566,26.68903912,171.54,171.48,26.68903912]
[1729762290775,26.68903912,171.57,171.51,26.68903912]
[1729762291076,26.94001912,171.58,171.52,26.68903912]
[1729762291490,26.68903912,171.58,171.52,13.34451956]
[1729762291771,0.12549,171.6,171.56,26.68903912]
[1729762292868,26.68903912,171.63,171.58,26.68903912]
[1729762293760,33.24553912,171.64,171.58,26.68903912]
[1729762293970,26.68903912,171.64,171.59,26.68903912]
[1729762294284,26.68903912,171.64,171.5,0.1]
[1729762294285,42.70569024,171.64,171.58,42.70569024]
[1729762295275,42.70569024,171.63,171.57,42.70569024]
[1729762296276,42.70569024,171.64,171.58,42.70569024]
[1729762296475,42.70569024,171.66,171.6,42.70569024]
[1729762297184,42.70569024,171.66,171.61,42.70569024]
[1729762297365,42.70569024,171.66,171.6,42.70569024]
[1729762297678,42.70569024,171.65,171.59,42.70569024]
[1729762298892,42.70569024,171.66,171.6,42.70569024]
[1729762299182,42.70569024,171.63,171.57,42.70569024]
[1729762300198,42.70569024,171.64,171.58,42.70569024]
[1729762300487,42.70569024,171.65,171.6,42.70569024]
[1729762300664,0.12549,171.66,171.61,42.70569024]
[1729762301068,42.70569024,171.66,171.61,42.70569024]
[1729762301282,16.4683,171.7,171.63,42.70569024]
[1729762301283,42.70569024,171.68,171.63,42.70569024]
[1729762301970,59.17399024,171.7,171.64,42.70569024]
[1729762302985,42.70569024,171.73,171.67,42.70569024]
[1729762303990,0.12549,171.72,171.67,42.70569024]
[1729762306187,0.12549,171.72,171.68,42.70569024]
[1729762306400,42.70569024,171.75,171.69,42.70569024]
[1729762307471,58.22569024,171.78,171.72,42.70569024]
[1729762307979,42.70569024,171.78,171.72,42.70569024]
[1729762308574,42.70569024,171.8,171.74,42.70569024]
[1729762309090,42.70569024,171.81,171.75,42.70569024]
[1729762309282,5.8186,171.86,171.78,42.70569024]
[1729762309527,42.70569024,171.84,171.78,42.70569024]
[1729762309688,42.70569024,171.82,171.76,42.70569024]
[1729762310692,42.70569024,171.77,171.71,42.70569024]
[1729762310990,42.70569024,171.76,171.71,42.70569024]
[1729762311880,42.70569024,171.77,171.71,42.70569024]
[1729762312294,42.70569024,171.77,171.72,42.70569024]
[1729762312475,42.70569024,171.78,171.73,42.70569024]
[1729762312671,42.70569024,171.79,171.73,42.70569024]
[1729762313101,42.70569024,171.8,171.74,42.70569024]
[1729762313389,42.70569024,171.8,171.68,21.4386]
[1729762313390,42.70569024,171.83,171.77,42.70569024]
[1729762314505,42.70569024,171.84,171.79,42.70569024]
[1729762314694,42.70569024,171.86,171.8,42.70569024]
[1729762315873,0.12549,171.85,171.8,42.70569024]
[1729762316973,0.12549,171.85,171.76,6.5585]
[1729762316974,0.12549,171.85,171.81,42.70569024]
[1729762317179,42.70569024,171.86,171.81,42.70569024]
[1729762317386,0.12549,171.86,171.81,42.70569024]
[1729762318182,42.70569024,171.87,171.82,42.70569024]
[1729762318387,42.70569024,171.88,171.83,42.70569024]
[1729762318593,42.70569024,171.89,171.83,42.70569024]
[1729762319470,42.83118024,171.88,171.83,42.70569024]
[1729762319797,42.83118024,171.88,171.82,42.70569024]
[1729762320094,42.83118024,171.88,171.83,42.70569024]
[1729762320485,36.84284512,171.91,171.85,42.70569024]
[1729762320700,36.84284512,171.91,171.81,42.70569024]
[1729762320701,42.70569024,171.92,171.86,42.70569024]
[1729762322809,22.4087,171.95,171.79,0.2]
[1729762322810,42.70569024,171.9,171.85,42.70569024]
[1729762322976,42.70569024,171.9,171.84,42.70569024]
[1729762324199,42.70569024,171.86,171.8,42.70569024]
[1729762326586,42.70569024,171.85,171.79,42.70569024]
[1729762326905,42.70569024,171.86,171.8,42.70569024]
[1729762327094,42.70569024,171.88,171.83,42.70569024]
[1729762327294,42.70569024,171.9,171.84,42.70569024]
[1729762329593,42.70569024,171.89,171.84,42.70569024]
[1729762330512,42.70569024,171.88,171.83,42.70569024]
[1729762330688,42.70569024,171.86,171.8,42.70569024]
[1729762330998,42.70569024,171.86,171.76,22.8799]
[1729762330999,42.70569024,171.85,171.79,42.70569024]
[1729762331700,42.70569024,171.86,171.8,42.70569024]
[1729762331905,42.70569024,171.88,171.82,42.70569024]
[1729762332603,42.70569024,171.88,171.76,22.9799]
[1729762332604,42.70569024,171.87,171.81,42.70569024]
[1729762335601,42.70569024,171.89,171.83,42.70569024]
[1729762335997,42.70569024,171.87,171.76,22.9799]
[1729762336293,42.70569024,171.88,171.82,42.70569024]
[1729762337710,42.70569024,171.89,171.83,42.70569024]
[1729762338310,26.61124604,171.89,171.83,26.61124604]
[1729762339700,26.61124604,171.88,171.82,26.61124604]
[1729762339908,26.61124604,171.87,171.82,26.61124604]
[1729762340114,26.61124604,171.88,171.82,26.61124604]
[1729762342903,26.61124604,171.83,171.76,22.8799]
[1729762343219,26.61124604,171.83,171.77,26.61124604]
[1729762343391,26.61124604,171.85,171.79,26.61124604]
[1729762344017,26.61124604,171.86,171.8,26.61124604]
[1729762344313,16.0605,171.88,171.76,22.8799]
[1729762344314,26.61124604,171.84,171.78,26.61124604]
[1729762344700,26.61124604,171.81,171.76,16.3214]
[1729762344901,26.61124604,171.8,171.74,26.61124604]
[1729762345113,26.61124604,171.79,171.74,26.61124604]
[1729762345320,26.61124604,171.78,171.72,49.44024604]
[1729762345619,26.61124604,171.73,171.68,16.2601]
[1729762345796,26.61124604,171.77,171.71,26.61124604]
[1729762346102,15.765,171.8,171.7,26.61124604]
[1729762346103,26.61124604,171.76,171.7,26.61124604]
[1729762346708,26.61124604,171.75,171.7,26.61124604]
[1729762348911,26.61124604,171.73,171.67,33.18014604]
[1729762350105,26.61124604,171.74,171.69,26.61124604]
[1729762351809,26.61124604,171.77,171.71,26.61124604]
[1729762353604,26.61124604,171.75,171.69,26.61124604]
[1729762354302,26.61124604,171.71,171.65,26.61124604]
[1729762354595,26.61124604,171.72,171.64,15.3948]
[1729762354798,26.61124604,171.72,171.66,26.61124604]
[1729762355498,26.61124604,171.74,171.69,26.61124604]
[1729762355699,26.61124604,171.75,171.69,26.61124604]
[1729762355902,26.61124604,171.74,171.68,26.61124604]
[1729762357616,26.61124604,171.75,171.69,26.61124604]
[1729762357805,26.61124604,171.73,171.68,26.61124604]
[1729762358010,26.61124604,171.72,171.67,26.61124604]
[1729762358815,26.61124604,171.74,171.68,26.61124604]
[1729762359417,26.61124604,171.73,171.68,26.61124604]
[1729762359602,26.61124604,171.73,171.67,26.61124604]
[1729762360015,26.61124604,171.72,171.66,26.61124604]
[1729762360222,5.823,171.74,171.66,26.61124604]
[1729762360223,26.61124604,171.71,171.66,26.61124604]
[1729762360827,26.61124604,171.72,171.66,26.61124604]
[1729762361321,26.61124604,171.72,171.67,26.61124604]
[1729762361822,26.61124604,171.72,171.64,15.3948]
[1729762361823,0.12549,171.74,171.69,26.61124604]
[1729762362001,26.73673604,171.74,171.69,26.61124604]
[1729762362201,26.61124604,171.73,171.67,26.61124604]
[1729762365711,0.12549,171.74,171.69,26.61124604]
[1729762366217,26.61124604,171.77,171.71,26.61124604]
[1729762366616,26.61124604,171.76,171.71,26.61124604]
[1729762366926,26.61124604,171.76,171.7,26.61124604]
[1729762367126,26.61124604,171.75,171.7,26.61124604]
[1729762368025,26.61124604,171.76,171.7,26.61124604]
[1729762370307,26.61124604,171.75,171.7,26.61124604]
[1729762371621,26.61124604,171.76,171.7,26.61124604]
[1729762372624,26.61124604,171.76,171.71,26.61124604]
[1729762374512,26.61124604,171.76,171.7,26.61124604]
[1729762376916,26.61124604,171.75,171.69,26.61124604]
[1729762380814,26.61124604,171.76,171.7,26.61124604]
[1729762381022,0.25098,171.78,171.7,26.61124604]
[1729762381339,26.61124604,171.76,171.7,26.61124604]
[1729762384139,0.25098,171.7,171.56,22.6351]
[1729762384323,26.61124604,171.65,171.56,22.6351]
[1729762384639,26.61124604,171.65,171.59,26.61124604]
[1729762385342,26.61124604,171.64,171.58,26.61124604]
[1729762385642,26.61124604,171.63,171.57,26.61124604]
[1729762391320,26.61124604,171.62,171.56,49.24634604]
[1729762391518,26.61124604,171.62,171.56,43.13214604]
[1729762392323,26.61124604,171.63,171.57,26.61124604]
[1729762393331,26.61124604,171.63,171.58,26.61124604]
[1729762393527,26.61124604,171.64,171.58,26.61124604]
[1729762394424,26.61124604,171.65,171.6,26.61124604]
[1729762394927,26.61124604,171.65,171.59,26.61124604]
[1729762397727,26.61124604,171.64,171.58,26.61124604]
[1729762399567,26.61124604,171.63,171.58,26.61124604]
[1729762400122,26.61124604,171.63,171.57,26.61124604]
[1729762400332,17.08432178,171.63,171.57,17.08432178]
[1729762400535,17.08432178,171.62,171.56,17.08432178]
[1729762401234,17.08432178,171.61,171.55,18.09515204]
[1729762401753,17.20981178,171.6,171.55,1.01083026]
[1729762402056,0.25098,171.55,171.47,17.08432178]
[1729762402235,17.08432178,171.52,171.48,1.01177384]
[1729762402433,17.08432178,171.53,171.47,17.08432178]
[1729762403234,17.08432178,171.52,171.46,17.08432178]
[1729762403436,17.08432178,171.51,171.45,23.15585261]
[1729762403757,6.77498,171.55,171.45,6.07153083]
[1729762403758,17.08432178,171.49,171.45,6.07153083]
[1729762404052,17.08432178,171.49,171.43,8.54216089]
[1729762404243,17.08432178,171.49,171.43,17.08432178]
[1729762404448,26.73712038,171.49,171.43,26.73712038]
[1729762404829,26.86261038,171.48,171.42,26.73712038]
[1729762406146,0.12549,171.48,171.43,26.73712038]
[1729762406743,26.86261038,171.48,171.42,26.73712038]
[1729762409942,26.86261038,171.48,171.4,0.6139855]
[1729762409943,26.86261038,171.48,171.43,26.73712038]
[1729762411252,26.73712038,171.47,171.42,26.73712038]
[1729762411451,26.73712038,171.47,171.4,0.6139855]
[1729762411452,0.12549,171.42,171.4,0.6139855]
[1729762411643,26.86261038,171.41,171.4,0.6139855]
[1729762411841,26.98810038,171.41,171.4,0.6139855]
[1729762412456,25.90894114,171.41,171.4,0.6139855]
[1729762412959,29.35756019,171.42,171.4,0.6139855]
[1729762413134,26.73712038,171.44,171.4,0.6139855]
[1729762413757,42.72612038,171.47,171.42,26.73712038]
[1729762414633,26.73712038,171.46,171.41,26.73712038]
[1729762414831,15.989,171.47,171.4,0.6139855]
[1729762414832,26.73712038,171.45,171.4,27.35110588]
[1729762415261,26.86261038,171.44,171.4,0.6139855]
[1729762415556,0.12549,171.44,171.4,27.35110588]
[1729762416563,26.86261038,171.44,171.4,0.6139855]
[1729762417153,0.12549,171.44,171.4,0.6139855]
[1729762417345,26.73712038,171.44,171.4,0.6139855]
[1729762417657,26.73712038,171.43,171.4,0.6139855]
[1729762417845,26.98810038,171.41,171.4,0.6139855]
[1729762419244,50.76498438,171.41,171.4,0.6139855]
[1729762419759,56.59888438,171.41,171.4,0.6139855]
[1729762419945,32.82200038,171.41,171.4,0.6139855]
[1729762420545,32.99112038,171.43,171.4,0.6139855]
[1729762420749,0.25098,171.43,171.4,0.6139855]
[1729762420947,26.73712038,171.41,171.4,0.6139855]
[1729762421654,26.86261038,171.41,171.4,0.6139855]
[1729762424151,0.12549,171.41,171.4,0.6139855]
[1729762425650,26.86261038,171.41,171.4,0.6139855]
[1729762426740,32.82200038,171.41,171.4,0.6139855]
[1729762427247,76.59888438,171.41,171.4,0.6139855]
[1729762427955,82.65173316,171.41,171.4,0.6139855]
[1729762430233,98.05493316,171.41,171.4,0.6139855]
[1729762430632,104.44243316,171.41,171.4,0.6139855]
[1729762432048,0.1,171.39,171.25,15.2653]
[1729762432260,104.34243316,171.41,171.25,15.2653]
[1729762432261,26.73712038,171.31,171.25,15.2653]
[1729762432461,26.73712038,171.31,171.25,42.00242038]
[1729762432755,26.73712038,171.28,171.23,26.73712038]
[1729762434246,0.25098,171.29,171.19,15.4962]
[1729762434247,26.98810038,171.27,171.19,15.4962]
[1729762434465,26.73712038,171.3,171.24,26.73712038]
[1729762434640,0.25098,171.29,171.25,26.73712038]
[1729762434952,0.25098,171.29,171.24,26.73712038]
[1729762435158,26.98810038,171.29,171.24,26.73712038]
[1729762435456,0.25098,171.29,171.24,26.73712038]
[1729762436941,26.98810038,171.29,171.24,26.73712038]
[1729762437661,0.25098,171.29,171.24,26.73712038]
[1729762438252,26.73712038,171.28,171.19,15.4962]
[1729762438455,26.98810038,171.29,171.24,26.73712038]
[1729762438869,0.25098,171.29,171.25,26.73712038]
[1729762439245,26.98810038,171.29,171.23,26.73712038]
[1729762439550,32.82640038,171.29,171.23,26.73712038]
[1729762440061,32.82640038,171.29,171.24,26.73712038]
[1729762440561,54.06177043,171.32,171.26,26.73712038]
[1729762440750,26.73712038,171.32,171.27,26.73712038]
[1729762441965,26.73712038,171.31,171.26,26.73712038]
[1729762442355,0.12549,171.31,171.26,26.73712038]
[1729762442549,26.73712038,171.32,171.27,26.73712038]
[1729762442746,26.73712038,171.33,171.27,26.73712038]
[1729762443160,26.73712038,171.33,171.27,26.81712038]
[1729762443755,26.73712038,171.34,171.29,13.36856019]
[1729762443961,0.12549,171.34,171.3,26.73712038]
[1729762444144,26.73712038,171.37,171.32,26.73712038]
[1729762444349,43.26282038,171.41,171.35,26.73712038]
[1729762444553,26.73712038,171.42,171.37,26.73712038]
[1729762444858,32.79306947,171.42,171.36,26.73712038]
[1729762445257,26.73712038,171.43,171.38,26.73712038]
[1729762445456,26.73712038,171.43,171.38,26.81712038]
[1729762445649,26.73712038,171.43,171.38,0.08]
[1729762446162,26.73712038,171.45,171.39,26.73712038]
[1729762446371,26.73712038,171.48,171.42,26.73712038]
[1729762446544,32.56832038,171.5,171.44,26.73712038]
[1729762446870,26.73712038,171.5,171.45,26.73712038]
[1729762447046,26.73712038,171.51,171.45,26.73712038]
[1729762447557,26.73712038,171.51,171.46,26.73712038]
[1729762447753,26.73712038,171.51,171.45,26.73712038]
[1729762447958,26.73712038,171.5,171.44,26.73712038]
[1729762448581,26.73712038,171.5,171.45,26.73712038]
[1729762448954,0.12549,171.5,171.45,26.73712038]
[1729762449149,0.12549,171.5,171.46,26.73712038]
[1729762450451,0.12549,171.5,171.45,26.73712038]
[1729762450649,26.86261038,171.5,171.45,26.73712038]
[1729762450852,0.12549,171.5,171.45,26.73712038]
[1729762451649,26.86261038,171.5,171.46,0.08]
[1729762453055,0.12549,171.5,171.46,0.08]
[1729762453249,0.12549,171.5,171.45,26.73712038]
[1729762454475,13.36856019,171.52,171.47,26.73712038]
[1729762454676,26.73712038,171.53,171.47,26.73712038]
[1729762454880,26.73712038,171.5,171.45,26.73712038]
[1729762455173,26.73712038,171.46,171.4,26.73712038]
[1729762455589,26.73712038,171.47,171.41,26.73712038]
[1729762457065,26.73712038,171.46,171.4,26.73712038]
[1729762457470,26.73712038,171.43,171.38,26.73712038]
[1729762457754,26.73712038,171.41,171.35,42.04632038]
[1729762458066,26.98810038,171.45,171.35,42.04632038]
[1729762458067,26.73712038,171.4,171.35,15.3092]
[1729762458256,26.73712038,171.41,171.35,42.04632038]
[1729762458456,26.73712038,171.41,171.36,26.73712038]
[1729762458859,26.73712038,171.43,171.37,26.73712038]
[1729762459063,0.12549,171.45,171.4,26.73712038]
[1729762459268,26.86261038,171.45,171.39,26.73712038]
[1729762459473,26.73712038,171.44,171.38,26.73712038]
[1729762459664,26.73712038,171.43,171.38,26.73712038]
[1729762461068,26.73712038,171.4,171.35,42.04632038]
[1729762461460,26.73712038,171.42,171.36,26.73712038]
[1729762461676,26.73712038,171.43,171.37,26.73712038]
[1729762461874,26.73712038,171.44,171.38,26.73712038]
[1729762462071,26.86261038,171.45,171.39,26.73712038]
[1729762463359,26.73712038,171.43,171.38,26.73712038]
[1729762464594,26.73712038,171.42,171.36,26.73712038]
[1729762465680,26.73712038,171.4,171.35,15.3092]
[1729762465896,26.73712038,171.39,171.35,15.3092]
[1729762466076,26.73712038,171.37,171.32,26.73712038]
[1729762466581,26.73712038,171.37,171.31,43.24762038]
[1729762466762,26.73712038,171.39,171.33,26.73712038]
[1729762468669,26.73712038,171.39,171.35,1.84]
[1729762469488,0.12549,171.39,171.35,1.84]
[1729762470066,26.86261038,171.39,171.35,1.84]
[1729762472066,26.73712038,171.43,171.38,26.73712038]
[1729762472370,26.73712038,171.43,171.37,26.73712038]
[1729762473180,26.73712038,171.43,171.38,26.73712038]
[1729762473372,26.73712038,171.45,171.4,26.73712038]
[1729762473685,26.73712038,171.45,171.39,26.73712038]
[1729762474388,26.73712038,171.44,171.39,26.73712038]
[1729762474769,26.73712038,171.45,171.39,26.73712038]
[1729762474971,26.73712038,171.45,171.4,1.83]
[1729762475460,26.73712038,171.44,171.4,1.83]
[1729762475666,26.73712038,171.45,171.4,1.83]
[1729762476783,42.90502038,171.46,171.4,28.56712038]
[1729762476990,26.86261038,171.45,171.4,28.56712038]
[1729762478094,0.12549,171.45,171.4,28.56712038]
[1729762480296,26.73712038,171.46,171.4,26.73712038]
[1729762480983,26.73712038,171.49,171.43,26.73712038]
[1729762481491,26.73712038,171.52,171.47,26.73712038]
[1729762483084,26.73712038,171.52,171.46,26.73712038]
[1729762484290,26.73712038,171.56,171.5,26.73712038]
[1729762485073,16.1896,171.59,171.53,26.73712038]
[1729762485373,6.1501,171.64,171.56,26.73712038]
[1729762485374,26.73712038,171.61,171.56,26.73712038]
[1729762486380,26.73712038,171.6,171.54,26.73712038]
[1729762486582,0.25098,171.59,171.54,26.73712038]
[1729762487878,0.25098,171.59,171.55,26.73712038]
[1729762488473,0.25098,171.6,171.55,26.73712038]
[1729762489804,26.98810038,171.6,171.55,26.73712038]
[1729762490176,26.98810038,171.6,171.54,26.73712038]
[1729762491598,26.98810038,171.6,171.55,26.73712038]
[1729762492871,0.25098,171.6,171.55,26.73712038]
[1729762493503,0.25098,171.6,171.56,26.73712038]
[1729762493674,43.15762038,171.64,171.59,26.73712038]
[1729762494194,48.98382038,171.64,171.59,26.73712038]
[1729762494490,43.15762038,171.64,171.59,26.73712038]
[1729762494692,26.73712038,171.63,171.58,26.73712038]
[1729762494894,0.25098,171.62,171.58,26.73712038]
[1729762495097,0.12549,171.6,171.55,26.73712038]
[1729762495389,0.12549,171.6,171.56,26.73712038]
[1729762495779,0.12549,171.61,171.56,26.73712038]
[1729762495982,0.12549,171.61,171.57,26.73712038]
[1729762498500,0.12549,171.61,171.56,26.73712038]
[1729762498996,0.12549,171.59,171.54,26.73712038]
[1729762499174,0.12549,171.59,171.55,26.82712038]
[1729762499570,0.25098,171.6,171.56,26.73712038]
[1729762500377,26.73712038,171.57,171.55,0.09]
[1729762500795,26.73712038,171.58,171.55,0.09]
[1729762500982,26.98810038,171.57,171.55,0.09]
[1729762501386,0.12549,171.55,171.5,42.32952038]
[1729762501576,0.12549,171.55,171.51,26.73712038]
[1729762501981,0.25098,171.56,171.51,26.73712038]
[1729762503402,0.25098,171.56,171.5,42.32952038]
[1729762503806,26.98810038,171.56,171.5,42.32952038]
[1729762504006,0.12549,171.55,171.5,42.32952038]
[1729762504302,26.86261038,171.53,171.45,15.3163]
[1729762504503,26.73712038,171.51,171.45,42.05342038]
[1729762504891,26.73712038,171.5,171.44,32.97052038]
[1729762505095,0.12549,171.49,171.44,32.97052038]
[1729762505992,26.86261038,171.49,171.39,2.3994581]
[1729762506307,0.12549,171.46,171.42,26.73712038]
[1729762506485,0.12549,171.47,171.44,26.73712038]
[1729762506685,26.73712038,171.5,171.44,26.73712038]
[1729762506686,0.25098,171.49,171.44,26.73712038]
[1729762506893,26.98810038,171.49,171.44,26.73712038]
[1729762507885,26.98810038,171.49,171.43,26.73712038]
[1729762509603,0.12549,171.47,171.42,26.73712038]
[1729762510008,0.25098,171.47,171.42,26.73712038]
[1729762510206,0.12549,171.44,171.39,26.73712038]
[1729762510501,0.25098,171.44,171.39,26.73712038]
[1729762510695,0.12549,171.46,171.42,26.73712038]
[1729762510895,0.12549,171.46,171.42,26.23712038]
[1729762511081,0.12549,171.46,171.42,26.73712038]
[1729762511390,0.25098,171.5,171.45,26.73712038]
[1729762511708,26.73712038,171.49,171.44,26.73712038]
[1729762512006,0.12549,171.48,171.44,26.73712038]
[1729762512700,26.86261038,171.5,171.46,26.73712038]
[1729762512701,0.12549,171.5,171.46,26.73712038]
[1729762513407,26.73712038,171.53,171.47,26.73712038]
[1729762513705,26.73712038,171.55,171.5,26.73712038]
[1729762514194,26.73712038,171.56,171.5,26.73712038]
[1729762514396,26.73712038,171.58,171.53,26.73712038]
[1729762514617,26.73712038,171.57,171.52,26.73712038]
[1729762514896,26.73712038,171.57,171.51,26.73712038]
[1729762515101,26.73712038,171.56,171.51,26.73712038]
[1729762515403,26.73712038,171.56,171.5,26.73712038]
[1729762515613,26.73712038,171.56,171.51,26.73712038]
[1729762516001,26.73712038,171.56,171.5,26.73712038]
[1729762516608,26.73712038,171.56,171.51,26.73712038]
[1729762516994,0.12549,171.55,171.45,0.1]
[1729762517187,0.12549,171.55,171.5,26.73712038]
[1729762517384,0.12549,171.55,171.43,20.0]